bitfinex/quotes_BTCUSD_20241211
["timestamp","ask_amount","ask_price","bid_price","bid_amount"]
[1733952812437,0.13265,101170.0,101160.0,0.2578305]
[1733952813301,0.1666321,101170.0,101160.0,0.2578305]
[1733952813684,0.13265,101170.0,101160.0,0.2578305]
[1733952814248,0.13265,101170.0,101160.0,0.2677155]
[1733952815362,0.1666321,101170.0,101160.0,0.2677155]
[1733952815612,0.13265,101170.0,101160.0,0.2677155]
[1733952816733,0.13265,101170.0,101160.0,0.001116]
[1733952817865,0.13065,101170.0,101160.0,0.000116]
[1733952818067,0.13138857,101170.0,101160.0,0.000116]
[1733952818281,0.12938857,101170.0,101160.0,0.003116]
[1733952818477,0.12938857,101170.0,101160.0,0.005116]
[1733952818892,0.12938857,101170.0,101160.0,0.002116]
[1733952819094,0.12938857,101170.0,101160.0,0.2667358]
[1733952819260,0.12938857,101170.0,101160.0,0.2697358]
[1733952819620,0.12938857,101170.0,101160.0,0.2717358]
[1733952819815,0.12938857,101170.0,101160.0,0.024886]
[1733952820151,0.12938857,101170.0,101160.0,0.022886]
[1733952820561,0.12938857,101170.0,101160.0,0.019886]
[1733952821396,0.13038857,101170.0,101160.0,0.033886]
[1733952823221,0.13038857,101170.0,101160.0,0.014116]
[1733952824404,0.13047457,101170.0,101160.0,0.014116]
[1733952824689,0.71416089,101170.0,101160.0,0.014116]
[1733952824896,0.60073145,101170.0,101160.0,0.014116]
[1733952825135,0.129736,101170.0,101160.0,0.033886]
[1733952825332,0.13047457,101170.0,101160.0,0.033886]
[1733952826160,0.13047457,101170.0,101160.0,0.014116]
[1733952826540,0.13047457,101170.0,101160.0,0.033886]
[1733952827501,0.14156818,101170.0,101160.0,0.033886]
[1733952828938,0.268642,101170.0,101160.0,0.14657687]
[1733952829143,0.1740241,101170.0,101160.0,0.49374432]
[1733952829341,0.140042,101170.0,101160.0,0.49374432]
[1733952830196,0.140042,101170.0,101160.0,0.38105345]
[1733952831899,0.140042,101170.0,101160.0,0.49374432]
[1733952832962,0.001136,101170.0,101160.0,0.49374432]
[1733952833199,0.0351181,101170.0,101160.0,0.72684432]
[1733952833875,0.1740241,101170.0,101160.0,0.72684432]
[1733952834081,0.1740241,101170.0,101160.0,0.63385932]
[1733952836618,0.001136,101170.0,101160.0,0.82175019]
[1733952837231,0.001136,101170.0,101160.0,0.80775019]
[1733952837232,0.000136,101170.0,101160.0,0.80775019]
[1733952837470,0.001136,101170.0,101160.0,0.80775019]
[1733952837851,0.001136,101170.0,101160.0,0.69505932]
[1733952837852,0.000136,101170.0,101160.0,0.69505932]
[1733952837990,0.007136,101170.0,101160.0,0.69605932]
[1733952838588,0.012136,101170.0,101160.0,0.69605932]
[1733952841961,0.151042,101170.0,101160.0,0.62085932]
[1733952843439,0.012136,101170.0,101160.0,0.80875019]
[1733952843837,0.012136,101170.0,101160.0,0.89727368]
[1733952845336,0.012136,101170.0,101160.0,0.78458281]
[1733952847036,0.012136,101170.0,101160.0,0.89727368]
[1733952847343,0.012136,101170.0,101160.0,0.78458281]
[1733952847779,0.0461181,101170.0,101160.0,0.78458281]
[1733952848000,0.1850241,101170.0,101160.0,0.69605932]
[1733952848611,0.0494859,101180.0,101160.0,1.16763614]
[1733952848612,8.59e-05,101180.0,101160.0,1.16763614]
[1733952848864,9e-07,101180.0,101170.0,0.86198365]
[1733952849073,9e-07,101180.0,101170.0,0.86349633]
[1733952849284,9e-07,101180.0,101170.0,0.99615791]
[1733952849502,9e-07,101180.0,101170.0,0.68643341]
[1733952849715,9e-07,101180.0,101170.0,0.95180365]
[1733952849936,9e-07,101180.0,101170.0,0.98497522]
[1733952850154,9e-07,101180.0,101170.0,1.07347617]
[1733952850356,9e-07,101180.0,101170.0,0.85223693]
[1733952850565,9e-07,101180.0,101170.0,0.68632941]
[1733952850778,0.0030009,101180.0,101170.0,0.68632941]
[1733952851243,0.0030009,101180.0,101170.0,0.67523541]
[1733952852972,0.0030009,101180.0,101170.0,0.68632941]
[1733952854024,0.0030009,101180.0,101170.0,0.67644541]
[1733952854227,0.0030009,101180.0,101170.0,0.69612707]
[1733952854689,0.0030009,101180.0,101170.0,0.68503307]
[1733952855360,0.0030009,101180.0,101170.0,0.55233362]
[1733952857278,0.0030009,101180.0,101170.0,0.5634132]
[1733952860931,0.0030009,101180.0,101170.0,0.45072233]
[1733952861141,0.0030009,101180.0,101170.0,0.5634132]
[1733952861362,0.0030009,101180.0,101170.0,0.4749469]
[1733952863254,9e-07,101180.0,101170.0,0.65435325]
[1733952863463,9e-07,101180.0,101170.0,0.74274642]
[1733952863665,9e-07,101180.0,101170.0,0.76264531]
[1733952863848,9e-07,101180.0,101170.0,1.04978592]
[1733952864096,9e-07,101180.0,101170.0,1.19732252]
[1733952864514,9e-07,101180.0,101170.0,1.02053618]
[1733952864724,9e-07,101180.0,101170.0,1.19728247]
[1733952867616,9e-07,101180.0,101170.0,1.19713563]
[1733952869608,9e-07,101180.0,101170.0,1.30994983]
[1733952869810,9e-07,101180.0,101170.0,1.28079787]
[1733952870187,7e-07,101200.0,101190.0,0.46367574]
[1733952870476,0.0926878,101220.0,101190.0,0.46367574]
[1733952870477,0.0926878,101220.0,101200.0,0.169762]
[1733952870680,0.0926878,101220.0,101210.0,0.65293208]
[1733952870681,8e-07,101220.0,101210.0,0.65293208]
[1733952870894,8e-07,101220.0,101210.0,0.68456567]
[1733952871104,0.138906,101250.0,101240.0,0.019755]
[1733952871105,0.1340786,101250.0,101240.0,0.019755]
[1733952871331,0.1340786,101250.0,101240.0,0.38275432]
[1733952871578,0.1340786,101250.0,101240.0,0.62940942]
[1733952871795,0.1346402,101250.0,101240.0,0.62940942]
[1733952872423,0.0005616,101250.0,101240.0,0.62940942]
[1733952873487,0.1346402,101250.0,101240.0,0.51671855]
[1733952873694,0.1346402,101250.0,101240.0,0.51771855]
[1733952874165,0.1346402,101250.0,101240.0,0.50784055]
[1733952874996,0.1346402,101250.0,101240.0,0.62053142]
[1733952878779,0.13459607,101250.0,101240.0,0.62053142]
[1733952882112,0.13468197,101250.0,101240.0,0.62053142]
[1733952883867,0.13468197,101250.0,101240.0,0.52022297]
[1733952884070,0.12480337,101250.0,101240.0,0.160877]
[1733952884712,0.12480337,101250.0,101240.0,0.151]
[1733952886105,0.12480337,101250.0,101240.0,0.160877]
[1733952886372,0.12480337,101250.0,101240.0,0.151]
[1733952887878,0.12480337,101250.0,101240.0,0.160877]
[1733952890765,0.25888197,101250.0,101240.0,0.62052992]
[1733952891185,0.18138197,101250.0,101240.0,0.62052992]
[1733952892649,0.00060337,101250.0,101240.0,0.6531514]
[1733952894104,3.7e-07,101250.0,101240.0,0.88696367]
[1733952894307,3.7e-07,101250.0,101240.0,0.96268743]
[1733952895553,3.7e-07,101250.0,101240.0,0.96168743]
[1733952895732,3.7e-07,101250.0,101240.0,0.93236367]
[1733952901542,3.7e-07,101250.0,101240.0,0.96168743]
[1733952902180,3.7e-07,101250.0,101240.0,1.27770533]
[1733952903223,8.6e-05,101280.0,101270.0,0.55047714]
[1733952903224,3.7e-07,101280.0,101270.0,0.55047714]
[1733952903428,3.7e-07,101290.0,101280.0,0.261573]
[1733952903637,3.7e-07,101290.0,101280.0,0.49049372]
[1733952903854,1e-07,101290.0,101280.0,0.49049372]
[1733952904069,0.05679797,101300.0,101290.0,0.15]
[1733952904274,0.05679797,101300.0,101290.0,0.62035898]
[1733952904487,0.05679797,101300.0,101290.0,0.61937192]
[1733952905853,0.05679797,101300.0,101290.0,0.62037192]
[1733952906594,0.05679797,101300.0,101290.0,0.61937192]
[1733952908472,0.23959447,101300.0,101290.0,0.61937192]
[1733952908825,0.10551587,101300.0,101290.0,0.37287132]
[1733952909021,0.10551587,101300.0,101290.0,0.37387132]
[1733952909697,0.10551587,101300.0,101290.0,0.62041602]
[1733952909943,0.10551587,101300.0,101290.0,0.61941602]
[1733952910539,0.15371587,101300.0,101290.0,0.009872]
[1733952910797,0.30445444,101300.0,101280.0,0.009873]
[1733952911002,0.0827,101290.0,101280.0,0.009873]
[1733952912081,0.08343857,101290.0,101280.0,0.159873]
[1733952912529,0.08343857,101290.0,101280.0,0.166873]
[1733952912734,0.08343857,101290.0,101270.0,0.14341107]
[1733952912735,0.1340786,101280.0,101270.0,0.04704375]
[1733952912944,0.1340786,101280.0,101270.0,0.3939275]
[1733952914843,0.1340786,101280.0,101270.0,0.5439275]
[1733952915667,0.05053857,101280.0,101270.0,0.2564483]
[1733952915894,0.05053857,101280.0,101270.0,0.009873]
[1733952916744,0.12983857,101280.0,101270.0,0.009873]
[1733952916988,8.58e-05,101280.0,101270.0,0.73313717]
[1733952917215,8.58e-05,101280.0,101270.0,0.79409493]
[1733952917418,8.58e-05,101280.0,101270.0,0.76477117]
[1733952917855,8.58e-05,101280.0,101270.0,0.6520803]
[1733952918310,8.58e-05,101280.0,101270.0,0.76477117]
[1733952918578,8.58e-05,101280.0,101270.0,0.61945882]
[1733952920424,8.58e-05,101280.0,101270.0,0.62997057]
[1733952920970,8.58e-05,101280.0,101270.0,0.66259205]
[1733952921261,8.58e-05,101280.0,101270.0,0.62997057]
[1733952921480,8.58e-05,101280.0,101270.0,0.66259205]
[1733952921734,8.58e-05,101280.0,101270.0,0.77528292]
[1733952922006,8.58e-05,101280.0,101270.0,0.79828292]
[1733952922868,8.58e-05,101280.0,101270.0,0.76566144]
[1733952925955,8.58e-05,101280.0,101270.0,0.80514944]
[1733952926178,8.58e-05,101280.0,101270.0,0.69245857]
[1733952928946,8.58e-05,101280.0,101270.0,0.66963037]
[1733952929152,8.58e-05,101280.0,101270.0,0.63014237]
[1733952931854,0.00365564,101280.0,101270.0,0.63014237]
[1733952932278,0.00365564,101280.0,101270.0,0.74283324]
[1733952932503,6.4e-07,101280.0,101270.0,0.89197612]
[1733952932736,6.4e-07,101300.0,101290.0,0.2276]
[1733952932955,6.4e-07,101300.0,101290.0,0.45047132]
[1733952933162,6.4e-07,101300.0,101290.0,0.7295699]
[1733952935315,6.4e-07,101300.0,101290.0,0.7305699]
[1733952936554,6.4e-07,101300.0,101290.0,0.7535699]
[1733952937154,0.03398274,101300.0,101290.0,0.7535699]
[1733952937984,0.03398274,101300.0,101290.0,0.72094842]
[1733952939074,0.03398274,101300.0,101290.0,0.73173095]
[1733952939659,0.08098274,101300.0,101290.0,0.63113095]
[1733952939834,0.21506134,101300.0,101290.0,0.63113095]
[1733952940038,0.22368513,101300.0,101290.0,0.63113095]
[1733952940845,0.08960653,101300.0,101290.0,0.63113095]
[1733952941053,0.22368513,101300.0,101290.0,0.63113095]
[1733952941261,0.04260653,101300.0,101290.0,0.63113095]
[1733952942505,0.17668513,101300.0,101290.0,0.63113095]
[1733952954587,0.17668513,101300.0,101290.0,0.66375243]
[1733952954842,0.0339821,101300.0,101290.0,0.74465243]
[1733952955091,5.3e-07,101300.0,101290.0,0.99849481]
[1733952955668,0.00325653,101310.0,101290.0,1.02995876]
[1733952955897,0.00325653,101310.0,101300.0,0.11116642]
[1733952956148,0.00325653,101310.0,101300.0,0.37385729]
[1733952956384,0.00325653,101310.0,101300.0,0.37287032]
[1733952957966,0.13733513,101310.0,101300.0,0.37287032]
[1733952960257,0.13005653,101310.0,101300.0,0.37287032]
[1733952960519,0.126936,101310.0,101300.0,0.37287032]
[1733952961020,0.126936,101310.0,101300.0,0.27256187]
[1733952962282,0.1271,101300.0,101290.0,0.2662211]
[1733952962584,0.1271,101300.0,101290.0,0.2662718]
[1733952962832,0.1337054,101300.0,101290.0,0.2662718]
[1733952963628,0.0066054,101300.0,101290.0,0.2662718]
[1733952963879,0.00734397,101300.0,101290.0,0.2664438]
[1733952964128,0.0066054,101300.0,101290.0,0.2664438]
[1733952964386,0.00734397,101300.0,101290.0,0.2664438]
[1733952964631,0.00734397,101300.0,101290.0,0.3966998]
[1733952964886,0.0066054,101300.0,101290.0,0.150172]
[1733952965702,0.0066054,101300.0,101290.0,0.000172]
[1733952965703,0.0076054,101300.0,101290.0,0.000172]
[1733952965992,0.0086054,101300.0,101290.0,0.009172]
[1733952966209,0.3076054,101300.0,101290.0,0.009172]
[1733952966448,0.3076054,101300.0,101290.0,0.015172]
[1733952966658,0.52858595,101300.0,101290.0,0.015172]
[1733952966871,0.3076054,101300.0,101290.0,0.015172]
[1733952967088,0.72601895,101300.0,101290.0,0.015172]
[1733952967538,0.52858595,101300.0,101290.0,0.015172]
[1733952967762,0.39599762,101300.0,101290.0,0.015172]
[1733952967975,0.3076054,101300.0,101290.0,0.015172]
[1733952968389,0.39599762,101300.0,101290.0,0.015172]
[1733952968607,0.3076054,101300.0,101290.0,0.015172]
[1733952968817,0.39599762,101300.0,101290.0,0.015172]
[1733952969873,0.38939222,101300.0,101290.0,0.015172]
[1733952970070,0.301,101300.0,101290.0,0.015172]
[1733952971408,0.59874145,101300.0,101290.0,0.015172]
[1733952972056,0.40130845,101300.0,101290.0,0.015172]
[1733952972229,0.622289,101300.0,101290.0,0.015172]
[1733952972432,0.59874145,101300.0,101290.0,0.015172]
[1733952972633,0.40130845,101300.0,101290.0,0.015172]
[1733952973281,0.59874145,101300.0,101290.0,0.015172]
[1733952973637,0.68698249,101300.0,101290.0,0.015172]
[1733952973817,0.70411106,101300.0,101290.0,0.015172]
[1733952974029,0.75031106,101300.0,101290.0,0.015172]
[1733952974236,0.61794949,101300.0,101290.0,0.015172]
[1733952974835,0.82200588,101300.0,101290.0,0.015172]
[1733952975425,0.54500588,101300.0,101290.0,0.015172]
[1733952975644,0.67736745,101300.0,101290.0,0.015172]
[1733952976279,0.54500588,101300.0,101290.0,0.015172]
[1733952976704,0.54500588,101300.0,101290.0,0.009172]
[1733952976915,0.54496642,101300.0,101290.0,0.009172]
[1733952977152,0.45676484,101300.0,101290.0,0.009172]
[1733952977565,0.45576484,101300.0,101290.0,0.000172]
[1733952977989,0.4262,101290.0,101260.0,0.15019959]
[1733952978202,0.07983857,101280.0,101260.0,0.15025579]
[1733952978423,0.07983857,101280.0,101270.0,0.0009864]
[1733952978424,0.08634176,101280.0,101270.0,0.0009864]
[1733952978637,0.13344176,101280.0,101260.0,0.0198062]
[1733952979082,0.13344176,101280.0,101260.0,0.0296812]
[1733952979520,0.13344176,101280.0,101260.0,0.0326812]
[1733952979736,0.0795,101270.0,101260.0,0.0228062]
[1733952979953,0.0795,101270.0,101260.0,0.2714036]
[1733952980162,0.0795,101270.0,101260.0,0.4214036]
[1733952981287,0.0795,101270.0,101260.0,0.4164036]
[1733952981503,0.0925,101270.0,101260.0,0.4075286]
[1733952981718,0.09995775,101270.0,101260.0,0.4075286]
[1733952984425,0.02045775,101270.0,101260.0,0.4075286]
[1733952986131,0.10075775,101270.0,101260.0,0.4075286]
[1733952986340,0.10075775,101270.0,101260.0,0.4077006]
[1733952989680,0.14995775,101270.0,101260.0,0.2478256]
[1733952989885,0.14995775,101270.0,101260.0,0.0012282]
[1733952990529,0.14595775,101270.0,101260.0,0.0012282]
[1733952990777,0.14595775,101270.0,101260.0,0.0042282]
[1733952990985,0.13695775,101270.0,101260.0,0.0032282]
[1733952991214,0.13695775,101270.0,101260.0,0.0042282]
[1733952991431,0.5847572,101270.0,101260.0,0.0042282]
[1733952991629,0.58214225,101270.0,101260.0,0.0042282]
[1733952992319,0.58214225,101270.0,101260.0,0.0197282]
[1733952999375,0.58222825,101270.0,101260.0,0.0197282]
[1733953000073,0.54491912,101270.0,101260.0,0.0197282]
[1733953000286,0.43222825,101270.0,101260.0,0.0197282]
[1733953002627,0.52020752,101270.0,101260.0,0.0197282]
[1733953003713,0.65217643,101270.0,101260.0,0.0197282]
[1733953005661,0.83108972,101270.0,101260.0,0.0197282]
[1733953008349,1.0510379,101270.0,101260.0,0.0197282]
[1733953015413,1.12470966,101270.0,101260.0,0.0197282]
[1733953016462,0.90028371,101270.0,101260.0,0.09339996]
[1733953016674,0.00676151,101270.0,101260.0,0.25614672]
[1733953016910,0.00676151,101270.0,101260.0,0.42909056]
[1733953016911,0.00082457,101270.0,101260.0,0.42909056]
[1733953017123,0.1341646,101270.0,101260.0,0.82547077]
[1733953017335,0.13728513,101270.0,101260.0,0.82547077]
[1733953017769,0.1341646,101270.0,101260.0,0.82547077]
[1733953017988,0.1341646,101270.0,101260.0,0.81847077]
[1733953018412,0.1351646,101270.0,101260.0,0.81847077]
[1733953018642,0.1351646,101270.0,101260.0,0.81947077]
[1733953019324,0.1351646,101270.0,101260.0,0.78429679]
[1733953021280,0.13828513,101270.0,101260.0,0.78429679]
[1733953022011,0.1351646,101270.0,101260.0,0.78429679]
[1733953022218,0.13828513,101270.0,101260.0,0.78429679]
[1733953022718,0.13804713,101270.0,101260.0,0.78429679]
[1733953023191,0.1349266,101270.0,101260.0,0.78429679]
[1733953023404,0.13804713,101270.0,101260.0,0.78429679]
[1733953026102,0.1349266,101270.0,101260.0,0.78429679]
[1733953027624,0.13804713,101270.0,101260.0,0.78429679]
[1733953027844,0.1349266,101270.0,101260.0,0.78429679]
[1733953031666,0.1349266,101270.0,101260.0,0.57581222]
[1733953032437,0.1349266,101270.0,101260.0,0.58568722]
[1733953033080,0.13804713,101270.0,101260.0,0.58568722]
[1733953034562,0.13804713,101270.0,101260.0,0.66085922]
[1733953034763,0.13813313,101270.0,101260.0,0.66085922]
[1733953035445,0.07703857,101290.0,101270.0,0.156474]
[1733953035446,0.00312053,101280.0,101270.0,0.156474]
[1733953035643,0.1339266,101290.0,101280.0,0.260573]
[1733953035874,0.1339266,101290.0,101280.0,0.83175573]
[1733953036028,0.14713747,101300.0,101290.0,0.059372]
[1733953036230,0.14713747,101300.0,101290.0,0.5887148]
[1733953036481,0.14713747,101300.0,101290.0,0.55840393]
[1733953036881,0.14713747,101300.0,101290.0,0.52654999]
[1733953038275,0.14813747,101300.0,101290.0,0.52654999]
[1733953039634,0.14813747,101300.0,101290.0,0.53696997]
[1733953042220,0.14813747,101300.0,101290.0,0.56882391]
[1733953042379,0.15113747,101300.0,101290.0,0.56882391]
[1733953043392,0.15013747,101300.0,101290.0,0.56882391]
[1733953043613,0.1491144,101320.0,101310.0,0.00987]
[1733953043815,0.0151878,101320.0,101310.0,0.90639133]
[1733953044018,8e-07,101320.0,101310.0,0.93725833]
[1733953044854,8e-07,101320.0,101310.0,0.93731457]
[1733953045041,0.0090008,101320.0,101310.0,0.93831457]
[1733953045304,8e-07,101320.0,101310.0,0.94331457]
[1733953045527,0.1339266,101340.0,101320.0,0.18185314]
[1733953045712,0.1339266,101340.0,101330.0,0.38547799]
[1733953045916,0.1339266,101340.0,101330.0,0.67362506]
[1733953046327,0.1339266,101340.0,101330.0,0.70294882]
[1733953046630,8.59e-05,101360.0,101340.0,0.192734]
[1733953046830,0.07972447,101360.0,101350.0,0.009866]
[1733953048173,0.08128652,101360.0,101350.0,0.017866]
[1733953048567,0.08054795,101360.0,101350.0,0.15303554]
[1733953048769,0.08054795,101360.0,101350.0,0.39943364]
[1733953049590,0.08054795,101360.0,101350.0,0.15903554]
[1733953050218,0.08054795,101360.0,101350.0,0.55543374]
[1733953050622,0.00164795,101360.0,101350.0,0.65574219]
[1733953051152,0.13557455,101360.0,101350.0,0.68759606]
[1733953051354,0.13557455,101360.0,101350.0,0.71691982]
[1733953052224,0.13557455,101360.0,101350.0,0.71681982]
[1733953053995,0.13557455,101360.0,101350.0,0.68486595]
[1733953054197,0.13557455,101360.0,101350.0,0.71671982]
[1733953054992,0.13557455,101360.0,101350.0,0.68486595]
[1733953055806,0.13557455,101360.0,101350.0,0.71671982]
[1733953057672,0.13557455,101360.0,101350.0,0.71689182]
[1733953058719,0.13557455,101360.0,101350.0,0.68756806]
[1733953058924,0.13557455,101360.0,101350.0,0.71689182]
[1733953060368,0.00164795,101360.0,101350.0,0.79799182]
[1733953060575,0.00064795,101360.0,101350.0,0.79799182]
[1733953060821,0.00064795,101360.0,101350.0,0.84579182]
[1733953061213,9.5e-07,101360.0,101350.0,0.95796136]
[1733953061612,9.5e-07,101360.0,101350.0,0.97403476]
[1733953061822,9.5e-07,101360.0,101350.0,0.96803476]
[1733953062233,9.5e-07,101360.0,101350.0,0.93618089]
[1733953062436,9.5e-07,101360.0,101350.0,0.7217565]
[1733953062684,0.1340127,101380.0,101360.0,0.19273]
[1733953062893,0.1340127,101380.0,101370.0,0.34893486]
[1733953062894,8.61e-05,101380.0,101370.0,0.34893486]
[1733953063097,8.61e-05,101380.0,101370.0,0.67683946]
[1733953063702,8.61e-05,101380.0,101370.0,0.90117854]
[1733953064826,8.61e-05,101380.0,101370.0,0.90217854]
[1733953067768,1e-07,101380.0,101370.0,0.96665194]
[1733953068307,1e-07,101380.0,101370.0,0.97682697]
[1733953069615,1e-07,101380.0,101370.0,0.96075357]
[1733953069839,1e-07,101380.0,101370.0,0.92676548]
[1733953070104,1e-07,101380.0,101370.0,0.92693728]
[1733953070309,1e-07,101380.0,101370.0,0.92815105]
[1733953070516,1e-07,101380.0,101370.0,0.95992537]
[1733953073046,0.11856,101390.0,101380.0,0.009863]
[1733953073262,0.11856,101390.0,101380.0,0.4611034]
[1733953074236,0.11856,101390.0,101380.0,0.4709674]
[1733953074707,0.11856,101390.0,101380.0,0.43797931]
[1733953074937,0.11856,101390.0,101380.0,0.40620499]
[1733953075144,0.11856,101390.0,101380.0,0.4719674]
[1733953075348,0.11856,101390.0,101380.0,0.58413694]
[1733953075591,0.11856,101390.0,101380.0,0.4719674]
[1733953075830,0.20036,101390.0,101380.0,0.40620499]
[1733953076288,0.20036,101390.0,101380.0,0.51837453]
[1733953077191,0.20036,101390.0,101380.0,0.40620499]
[1733953077634,0.3342866,101390.0,101380.0,0.40620499]
[1733953079117,0.2524866,101390.0,101380.0,0.51837453]
[1733953079962,0.2524866,101390.0,101380.0,0.40620499]
[1733953084531,0.11856,101390.0,101380.0,0.58413694]
[1733953084739,0.01993,101390.0,101380.0,0.58413694]
[1733953084954,0.01993,101390.0,101380.0,1.16519234]
[1733953085161,8.6e-05,101410.0,101400.0,0.41706208]
[1733953085363,8.6e-05,101410.0,101400.0,0.76359543]
[1733953085549,8.6e-05,101410.0,101400.0,0.82935784]
[1733953085986,8e-07,101420.0,101410.0,0.019721]
[1733953086195,8e-07,101420.0,101410.0,0.58403342]
[1733953086400,8e-07,101420.0,101410.0,0.51742477]
[1733953086816,8e-07,101420.0,101410.0,0.40525523]
[1733953087864,0.1339274,101420.0,101410.0,0.40525523]
[1733953088072,0.1338874,101420.0,101410.0,0.40525523]
[1733953088698,0.1338874,101420.0,101410.0,0.42497523]
[1733953088905,0.2091874,101420.0,101410.0,0.42497523]
[1733953089522,0.1217,101420.0,101410.0,0.30166678]
[1733953089732,0.1207,101420.0,101410.0,0.30166678]
[1733953090175,0.12143857,101420.0,101410.0,0.30166678]
[1733953090393,0.12143857,101420.0,101410.0,0.30266678]
[1733953090820,0.12143857,101420.0,101410.0,0.30166678]
[1733953091465,0.12143857,101420.0,101410.0,0.32466678]
[1733953091672,0.1207,101420.0,101410.0,0.32466678]
[1733953091882,0.12143857,101420.0,101410.0,0.32466678]
[1733953092099,0.12143857,101420.0,101410.0,0.28194578]
[1733953092309,0.12143857,101420.0,101410.0,0.00105624]
[1733953092692,0.42152447,101420.0,101410.0,0.00105624]
[1733953092900,0.43095977,101420.0,101410.0,0.00105624]
[1733953093115,0.71566933,101420.0,101410.0,5.624e-05]
[1733953093533,0.84693518,101420.0,101410.0,0.00405624]
[1733953093698,0.64973618,101420.0,101410.0,0.00805624]
[1733953093914,0.64973618,101420.0,101410.0,0.00405624]
[1733953094087,0.84693518,101420.0,101410.0,0.00405624]
[1733953094290,1.04724363,101420.0,101410.0,0.00405624]
[1733953094701,1.22226476,101420.0,101410.0,0.00405624]
[1733953095059,0.82846722,101420.0,101410.0,0.00405624]
[1733953095268,1.22479592,101420.0,101410.0,0.00405624]
[1733953095483,1.22479592,101420.0,101410.0,0.00805624]
[1733953095901,1.22479592,101420.0,101410.0,0.00795624]
[1733953096787,0.86081937,101420.0,101410.0,0.00795624]
[1733953096989,0.86081937,101420.0,101380.0,0.0396238]
[1733953096990,0.542227,101410.0,101380.0,0.0396238]
[1733953097191,0.045,101390.0,101380.0,0.02006502]
[1733953097395,0.1228,101390.0,101380.0,0.26638452]
[1733953097596,0.1228,101390.0,101380.0,0.00033902]
[1733953097804,0.1228,101390.0,101380.0,0.02006602]
[1733953098012,0.1228,101390.0,101380.0,0.00033902]
[1733953098213,0.1228,101390.0,101380.0,0.00133902]
[1733953098592,0.1228,101390.0,101380.0,0.00033902]
[1733953098852,0.1228,101390.0,101380.0,0.00833902]
[1733953099666,0.1228,101390.0,101380.0,0.18406602]
[1733953099868,0.12353857,101390.0,101380.0,0.18406602]
[1733953101825,0.13382609,101390.0,101380.0,0.18406602]
[1733953102711,0.14423106,101390.0,101380.0,0.18406602]
[1733953102910,0.14423106,101390.0,101380.0,0.16433902]
[1733953103116,0.14423106,101390.0,101380.0,0.01433902]
[1733953103326,0.14423106,101390.0,101380.0,0.03406602]
[1733953104236,0.14423106,101390.0,101380.0,0.01433902]
[1733953104453,0.14423106,101390.0,101380.0,0.03406602]
[1733953104787,0.14423106,101390.0,101380.0,0.01433902]
[1733953104918,0.14423106,101390.0,101380.0,0.03406602]
[1733953105555,0.14423106,101390.0,101380.0,0.01433902]
[1733953105750,0.74179751,101390.0,101380.0,0.01433902]
[1733953105974,0.74105894,101390.0,101380.0,0.01433902]
[1733953113222,0.09849249,101390.0,101380.0,0.54256086]
[1733953113429,0.02069249,101390.0,101380.0,0.54256086]
[1733953113636,0.01040497,101390.0,101380.0,0.54256086]
[1733953113752,0.01040497,101390.0,101380.0,0.43039132]
[1733953114029,0.07803857,101400.0,101390.0,0.019725]
[1733953115568,0.07803857,101400.0,101390.0,0.022725]
[1733953116412,0.07803857,101400.0,101390.0,0.025725]
[1733953117086,0.1338874,101380.0,101370.0,0.39033611]
[1733953117304,0.1338874,101380.0,101370.0,0.73712188]
[1733953117518,0.23857524,101400.0,101380.0,0.039452]
[1733953117740,0.23857524,101400.0,101380.0,0.059178]
[1733953117947,0.53613069,101400.0,101380.0,0.019726]
[1733953118153,0.33888369,101400.0,101380.0,0.15162154]
[1733953118578,0.53612469,101400.0,101380.0,0.15162154]
[1733953118970,0.53612469,101400.0,101380.0,0.15462154]
[1733953119612,0.53612469,101400.0,101380.0,0.17434754]
[1733953119997,0.53612469,101400.0,101380.0,0.15762154]
[1733953120613,0.53612469,101400.0,101380.0,0.025726]
[1733953121018,0.53612469,101400.0,101380.0,0.045452]
[1733953121359,0.53612469,101400.0,101380.0,0.025726]
[1733953122047,0.53612469,101400.0,101380.0,0.045453]
[1733953122300,0.73336569,101400.0,101380.0,0.045453]
[1733953124926,0.73336569,101400.0,101380.0,0.025726]
[1733953125171,0.52290845,101390.0,101380.0,0.006]
[1733953125480,0.52958344,101390.0,101380.0,0.006]
[1733953126025,0.72684144,101390.0,101380.0,0.006]
[1733953126271,0.72684144,101390.0,101380.0,0.003]
[1733953126541,0.72684144,101390.0,101380.0,0.005]
[1733953126808,0.72684144,101390.0,101380.0,0.012]
[1733953127322,0.52958344,101390.0,101380.0,0.031727]
[1733953127594,0.72684144,101390.0,101380.0,0.012]
[1733953129131,0.52958344,101390.0,101380.0,0.031899]
[1733953129378,0.72684144,101390.0,101380.0,0.012172]
[1733953133401,0.81498225,101390.0,101380.0,0.012172]
[1733953134385,0.94719346,101390.0,101380.0,0.012172]
[1733953135426,1.12347508,101390.0,101380.0,0.012172]
[1733953137391,1.34382711,101390.0,101380.0,0.012172]
[1733953138320,1.2556863,101390.0,101380.0,0.012172]
[1733953140213,1.12347509,101390.0,101380.0,0.012172]
[1733953140435,1.08704833,101390.0,101380.0,0.012172]
[1733953140663,0.95436921,101390.0,101380.0,0.012172]
[1733953140949,1.44479887,101390.0,101380.0,0.012172]
[1733953141616,1.44479887,101390.0,101380.0,0.007172]
[1733953141832,1.44479887,101390.0,101380.0,0.003172]
[1733953142061,1.53329414,101390.0,101380.0,0.003172]
[1733953142282,1.08012026,101390.0,101380.0,0.000172]
[1733953142512,1.53729414,101390.0,101380.0,0.000172]
[1733953142721,1.44979887,101390.0,101380.0,0.000172]
[1733953143361,0.69409698,101390.0,101380.0,0.000172]
[1733953143579,0.99270742,101390.0,101380.0,0.000172]
[1733953143713,1.44995466,101390.0,101380.0,0.000172]
[1733953144808,1.52791691,101390.0,101380.0,0.000172]
[1733953145014,1.44995466,101390.0,101380.0,0.000172]
[1733953145427,1.47745466,101390.0,101370.0,0.00033972]
[1733953145657,1.07313212,101380.0,101370.0,0.00033972]
[1733953145862,0.79836308,101380.0,101370.0,0.00033972]
[1733953146289,0.8049747,101380.0,101370.0,0.00033972]
[1733953146642,0.8059747,101380.0,101370.0,0.00033972]
[1733953146862,1.17184424,101380.0,101370.0,0.00033972]
[1733953147074,1.54995116,101380.0,101370.0,0.00033972]
[1733953147273,1.09297705,101380.0,101370.0,0.00033972]
[1733953147696,0.470416,101360.0,101350.0,0.000172]
[1733953147909,1.41417103,101360.0,101350.0,0.00073405]
[1733953148138,0.95462021,101360.0,101350.0,0.00073405]
[1733953148763,0.95462021,101360.0,101350.0,0.00373405]
[1733953150042,0.95462021,101360.0,101350.0,0.00673405]
[1733953150668,1.05832021,101360.0,101350.0,0.00673405]
[1733953151329,1.05832021,101360.0,101350.0,0.00073405]
[1733953151735,1.08632021,101360.0,101350.0,0.00073405]
[1733953152129,0.627457,101330.0,101310.0,0.142541]